Cogmind - Beta 9.4 @@@ ROGUE MODE // 2020.01.17 @ 15:08:44 Player: Hermelin Result: Destroyed by S-10 Pest with Light Assault Rifle Performance ------------- Evolutions (0) 0 Regions Visited (1) 200 Robots Destroyed (9) 45 Value Destroyed (327) 327 Prototype IDs (2) 40 Alien Tech Used (0) 0 Bonus (0) 0 TOTAL SCORE: 612 Bonus ------- None Cogmind --------- Core Integrity 0/250 Matter 275/300 Energy 234/250 System Corruption 0% Temperature Cool (95) Movement Hovering (116) Ox1 Location -10/Materials Parts ------- > --- POWER (1) -------- Ion Engine > --- PROPULSION (2) --- Hover Unit Hover Unit > --- UTILITY (2) ------ Small Storage Unit Light Armor Plating > --- WEAPON (2) ------- Beam Cannon > --- INVENTORY (6) ---- Ion Engine Hover Unit Hover Unit Signal Interpreter Peak State ------------ > --- POWER ------------ Ion Engine > --- PROPULSION ------- Light Treads Wheel > --- UTILITY ---------- Small Storage Unit Light Armor Plating > --- WEAPON ----------- EM Pulse Gun Light Assault Rifle > --- INVENTORY -------- Light Ion Engine Light Treads Aluminum Leg Aluminum Leg Wheel EM Pulse Gun [Rating: 7] Favorites ----------- Power Ion Engine Engine Ion Engine Propulsion Light Treads Treads Light Treads Wheel Wheel Hover Unit Hover Unit Utility Small Storage Unit Storage Small Storage Unit Protection Light Armor Plating Weapon EM Pulse Gun Energy Gun EM Pulse Gun Energy Cannon Beam Cannon Ballistic Gun Light Assault Rifle Build | -11 -10 ------- Run | Scr Mat Slots Evolved . | . . Power . | . . Propulsion . | . . Utility . | . . Weapon . | . . Parts Attached 11 | 6 5 Power 1 | 1 . Engine 1 | 1 . Core . | . . Reactor . | . . Propulsion 4 | 2 2 Treads 1 | 1 . Leg . | . . Wheel 1 | 1 . Hover 2 | . 2 Flight . | . . Utility 2 | 1 1 Device . | . . Storage 1 | 1 . Processor . | . . Hackware . | . . Protection 1 | . 1 Artifact . | . . Weapon 4 | 2 2 Energy Gun 2 | 1 1 Energy Cannon 1 | . 1 Ballistic Gun 1 | 1 . Ballistic Cannon . | . . Launcher . | . . Special Weapon . | . . Impact Weapon . | . . Slashing Weapon . | . . Piercing Weapon . | . . Special Melee Weapon . | . . Unidentified Prototypes . | . . Parts Lost 3 | . 3 Power . | . . Propulsion . | . . Utility . | . . Weapon 3 | . 3 Highest Loss Streak 1 | . 1 Average Slot Usage (%) 94 | . 94 Engine 14 | . 14 Treads 12 | . 12 Wheel 12 | . 12 Hover 2 | . 2 Storage 14 | . 14 Protection 13 | . 13 Energy Gun 12 | . 12 Ballistic Gun 11 | . 11 Naked Turns . | . . Heaviest Build 15 | 12 15 Greatest Support 20 | 20 12 Greatest Overweight (x) 2 | 1 2 Average Overweight (x) . | . 1 Largest Inventory Capacity 6 | 6 6 Average Capacity 5 | 5 6 Most Carried 6 | 6 6 Average Carried 5 | 3 5 Final Capacity 6 | 6 6 Final Carried 6 | 6 4 Class Distribution -------------------- 100% | Mutant Dominant Class ---------------- Mutant | -10/Materials Resources | -11 -10 ----------- Run | Scr Mat Matter Collected 294 | 174 120 Remotely . | . . Salvage Created 321 | . 321 Parts 16 | . 16 Haulers Intercepted . | . . Recyclers Shooed 1 | . 1 Parts Field Recycled . | . . Retrieved Matter . | . . Parts Self-Destructed . | . . Prevented . | . . Kills | -11 -10 ------- Run | Scr Mat Combat Hostiles Destroyed 9 | . 9 Guns 8 | . 8 AOE 1 | . 1 Classes Destroyed 2 | . 2 Swarmer 2 | . 2 Grunt 7 | . 7 Best Kill Streak 3 | . 3 Combat Bots Only 3 | . 3 Max Kills in Single Turn 1 | . 1 Gunslinging . | . . Exploded 1 | . 1 Melee . | . . Uniques/NPCs Destroyed . | . . Combat | -11 -10 -------- Run | Scr Mat Damage Taken 641 | . 641 Core 256 | . 256 Absorbed by Shields . | . . Core Remaining (%) 100 | 100 . Volleys Fired 38 | . 38 Largest 2 | . 2 Hottest 60 | . 60 Shots Fired 55 | . 55 Gun 52 | . 52 Cannon 3 | . 3 Launcher . | . . Special . | . . Kinetic 24 | . 24 Thermal 3 | . 3 Explosive . | . . Electromagnetic 28 | . 28 Robot Hit Streak 12 | . 12 Robot Miss Streak 3 | . 3 Penetration Max . | . . Secondary Targets . | . . Shots Hit Robots 38 | . 38 Core Hits 18 | . 18 Critical Hits 2 | . 2 Critical Kills 1 | . 1 Critical Parts Destroyed 1 | . 1 Melee Attacks . | . . Impact . | . . Slashing . | . . Piercing . | . . Sneak Attacks . | . . Combat Hostiles . | . . Follow-up Attacks . | . . Damage Inflicted 646 | . 646 Guns 388 | . 388 Cannons . | . . Explosions 258 | . 258 Melee . | . . Ramming . | . . Kinetic 140 | . 140 Thermal 258 | . 258 Explosive . | . . Electromagnetic 248 | . 248 Impact . | . . Slashing . | . . Piercing . | . . Highest Corruption . | . . Average Corruption . | . . Corruption Purged . | . . Overload Shots . | . . Overflow Damage 118 | . 118 Projectiles . | . . Explosions 118 | . 118 Melee . | . . Knockbacks . | . . Impact . | . . Kinetic . | . . Secondary . | . . Self-Inflicted Damage 188 | . 188 Shots 3 | . 3 Rammed . | . . Targets Rammed . | . . Kicked . | . . Crushed . | . . Highest Temperature 200 | . 200 Average Temperature 78 | . 78 Received Heat Transfer 192 | . 192 Siege Activations . | . . Robots Corrupted . | . . Combat Hostiles . | . . Parts Fried 1 | . 1 Impact Corruptions . | . . Robots Melted . | . . Combat Hostiles . | . . Parts Melted . | . . Heat Transferred 250 | . 250 Parts Sabotaged . | . . Parts Stolen . | . . Parts Stripped . | . . Power Chain Reactions 1 | . 1 Missiles Intercepted . | . . Alert | -11 -10 ------- Run | Scr Mat Peak Influence 175 | . 175 Average Influence 49 | . 60 Maximum Alert Level . | . . Low Security (%) 100 | 100 100 Level 1 . | . . Level 2 . | . . Level 3 . | . . Level 4 . | . . Level 5 . | . . High Security . | . . Max Security . | . . Squads Dispatched 1 | . 1 Investigation 1 | . 1 Extermination . | . . Reinforcement . | . . Assault . | . . Garrison . | . . Intercept . | . . Construction Impeded . | . . Haulers Reinforced . | . . Stealth | -11 -10 --------- Run | Scr Mat Distress Signals 1 | . 1 Communications Jammed . | . . Distress Signals . | . . Times Spotted 13 | . 13 Peak Tracking Total 4 | . 4 Tactical Retreats 2 | . 2 Traps | -11 -10 ------- Run | Scr Mat Traps Triggered 1 | . 1 Indirectly . | . . Trap Hack Attempts . | . . Triggered . | . . Disarmed . | . . Reprogrammed . | . . Reused . | . . Traps Extracted . | . . Installed . | . . Triggered . | . . Machines | -11 -10 ---------- Run | Scr Mat Machines Disabled 3 | . 3 Max in Single Turn 3 | . 3 Machines Sabotaged . | . . Garrisons Compromised . | . . Overloaded Fab Kills . | . . Fab Network Shutdowns . | . . Hacking | -11 -10 --------- Run | Scr Mat Machines Accessed 3 | . 3 Terminals 2 | . 2 Fabricators . | . . Repair Stations . | . . Recycling Units 1 | . 1 Scanalyzers . | . . Garrison Access . | . . Total Hacks 6 | . 6 Successful 4 | . 4 Failed 2 | . 2 Catastrophic 1 | . 1 Database Lockouts . | . . Manual 3 | . 3 Terminals 5 | . 5 Fabricators . | . . Repair Stations . | . . Recycling Units 1 | . 1 Scanalyzers . | . . Garrison Access . | . . Terminal Hacks 2 | . 2 Prototype ID Bank 1 | . 1 Unreport Threat 1 | . 1 Fabricator Hacks . | . . Repair Station Hacks . | . . Recycling Unit Hacks . | . . Scanalyzer . | . . Garrison Access Hacks . | . . Unauthorized Hacks 5 | . 5 Terminals 2 | . 2 Assimilate 1 | . 1 Botnet 1 | . 1 Fabricators . | . . Repair Stations . | . . Recycling Units . | . . Scanalyzers . | . . Garrison Access . | . . Data Cores Recovered . | . . Used . | . . Hacking Detections 3 | . 3 Full Trace Events . | . . Feedback Events . | . . Feedback Blocked . | . . Robot Schematics Acquired . | . . Robots Built . | . . Matter . | . . Time . | . . Total Robot Build Rating . | . . Part Schematics Acquired . | . . Parts Built . | . . Matter . | . . Time . | . . Total Part Build Rating . | . . Parts Repaired . | . . Time . | . . Parts Recycled . | . . Recycled Matter . | . . Retrieved Matter . | . . Retrieved Components . | . . Parts Scanalyzed . | . . Part Schematics Acquired . | . . Parts Damaged . | . . Bothacking | -11 -10 ------------ Run | Scr Mat Used RIF Installer . | . . Robots Hacked . | . . Non-combat . | . . Combat . | . . Robot Hacks Applied . | . . Relay Couplers Released . | . . Robots Rewired . | . . Allies Hacked . | . . Hacks Repelled . | . . Allies | -11 -10 -------- Run | Scr Mat Total Allies 1 | . 1 Largest Group 1 | . 1 Highest-Rated Group 10 | . 10 Highest-Rated Ally 10 | . 10 Total Orders . | . . Ally Attacks . | . . Total Damage . | . . Kills . | . . Allies Corrupted . | . . Allies Melted . | . . Intel | -11 -10 ------- Run | Scr Mat Robot Analysis Total . | . . Derelict Logs Recovered . | . . Drone Launches . | . . Drone Recoveries . | . . Exploration | -11 -10 ------------- Run | Scr Mat Turns Passed 344 | 65 279 Spaces Moved 227 | 56 171 Core 2 | 2 . Treads 3 | 3 . Legs . | . . Wheels 219 | 51 168 Hover 3 | . 3 Flight . | . . Fastest Speed 50 | 50 90 Average Speed 90 | 90 90 Slowest Speed 180 | 160 180 Overloaded Moves . | . . Propulsion Burnouts . | . . Robots Hopped . | . . Cave-ins Triggered . | . . Exploration Rate (%) 19 | 3 35 Regions Visited 1 Branch Regions . Pre-discovered Areas . | . . Known Exits Taken . | . . Unknown Exits Taken 1 | 1 . Scrap Searched . | . . Spaces Dug . | . . Terrain Destroyed 41 | . 41 Melee . | . . Projectile . | . . AOE 41 | . 41 Actions | -11 -10 --------- Run | Scr Mat Total 315 | 67 248 Wait 20 | . 20 Move 226 | 55 171 Hop . | . . Pick Up 12 | 6 6 Fast Attach 9 | 6 3 Attach 2 | . 2 Detach . | . . Swap . | . . Drop 8 | . 8 Fire 38 | . 38 Melee . | . . Ram . | . . Kick . | . . Crush . | . . Escape Stasis . | . . Rewire . | . . Trap . | . . Miscellaneous . | . . Route ------- -11/Scrapyard -10/Materials (discovered 2 exits: [*Mat] / [*Min]) History --------- Turn | Location | Event 7 | -11/Scrapyard | Discovered new exit (range 16) 66 | -11/Scrapyard | Entered Materials 129 | -10/Materials | Discovered new exit (range 15) 185 | -10/Materials | Discovered new exit (range 3) 236 | -10/Materials | Core integrity fell below 50% 284 | -10/Materials | Core integrity fell below 20% 316 | -10/Materials | Build established: Mutant 345 | -10/Materials | Destroyed by S-10 Pest with Light Assault Rifle Last Messages --------------- 00312_ T-07 Excavator is excavating. 00312_ R-06 Scavenger collects Aluminum Leg. 00317_ Triggered Alarm Trap. 00317_ An alarm sounds. 00317_ ALERT: Alarm triggered, dispatching investigation squad. 00318_ Dropped Lgt. Treads. 00319_ Dropped Wheel. 00319_ Acquired Hover Unit. 00324_ Dropped Wheel. 00325_ Dropped Lgt. Treads. 00325_ R-06 Scavenger collects Wheel. 00326_ Acquired Hover Unit. 00327_ R-06 Scavenger collects Lgt. Treads. 00329_ Acquired Hover Unit. 00330_ R-06 Scavenger collects Wheel. 00332_ Door malfunctions. 00332_ R-06 Scavenger collects Lgt. Treads. 00334_ S-10 Pest destroyed. 00338_ R-06 Scavenger collects Lgt. Ion Engine. 00338_ EM Pulse Gun destroyed. Map ----- +----------------------------------------------------+ | ???????????# < "??????##+####+### """ #???????? | | ???????????# !?????## #! #???????? | | ???????????# ???###" ####+####??????? | | ???????????# ""???# #" " #??????? | | ????????????# ?????# " " < #??????? | | ????????????# ###### " " #??????? | | ????????????+ % #"# ""##+####??????? | | ????????????# %% " ^ ????????? | | ????????????# #### " ^""" #???????? | | ????????????# ######+########## """ """ #???????? | | ??????????????????# # # """ #???????? | | ??????????????????# # # #???????? | | ??????????????????# % ##### #???????? | | ??????????????????# """"" ##??########???????? | | ??????????????????# """" """" #??????????????????? | | ??????????????????# """ """ #??????????????????? | | ??????????????????#* %% #??????????????????? | | ???????????????#########+######??????????????????? | | ???????????????# + #######?????????????????? | | ???????????????# #r # #?????????????????? | | ???????????????# / s #?????????????????? | | ???????????????# # # ##?????????????????? | | ???????????????# #%%###########?????????????? | | ???????????????# ?# * #?????????????? | | ???????????????######?# #?????????????? | | ??????????????????????# @ ! """ +?????????????? | | ??????????????????????# """ #?????????????? | | ??????????????????????# =! """ #?????????????? | | ??????????????????????# ?????????????? | | ????????????????????? | ???????????? | | ????????????????????###+###########+###??????????? | | ?????????????????????????????????????????????????? | | ?????????????????????????????????????????????????? | | ?????????????????????????????????????????????????? | | ?????????????????????????????????????????????????? | | ?????????????????????????????????????????????????? | | ?????????????????????????????????????????????????? | | ?????????????????????????????????????????????????? | | | | | | | | | | | | | | | | | | | | | | | | | +----------------------------------------------------+ Best States ------------- Heat Dissipation 25 Energy Generation 10 Energy Capacity 250 Matter Stores 300 Matter Capacity 300 Sight Range 16 Terrain Scan Density 10 Armor Coverage 150 Evasion (%) 44 Item Schematics ----------------- None Robot Schematics ------------------ None Fabricated ------------ Nothing Alien Tech Used ----------------- None Achievements -------------- None Challenges ------------ None Game ------ Seed ArmoredShrapnelMegatreads Manual? 0 Play Time 00:07:13 Cumulative 22.6 hours Start 2020.01.17 @ 15:02:53 End 2020.01.17 @ 15:08:44 Sessions 1 Manual Loads 0 Difficulty Rogue Special Mode None Game No. 14 Rogue 14 Adventurer 0 Explorer 0 Win Type - Total 0 Types 0/0/0/0/0/0/0 Lore% 42 Gallery% 21 Achievement% 33 Wizard Run 0 Options --------- ASCII 0 Keyboard 0 Movement Numpad Keybinds 0 Fullscreen 1 Font 14/SmallcapsGlow Map View 84x54 Tactical HUD 1 Map Filters NONE Filters NONE Steam 1 RUN: 188b5316-1aee-49e5-af2a-5c8837f36a85